Cogmind - Beta 17 @@@ ROGUE MODE // 2026.06.28 @ 14:31:43 Player: 3.14 Result: Self-destructed Performance ------------- Evolutions (4) 2000 Regions Visited (4) 800 Robots Destroyed (31) 155 Value Destroyed (846) 846 Prototype IDs (1) 20 Alien Tech Used (0) 0 Bonus (5600) 5600 TOTAL SCORE: 9421 Bonus ------- Prayed to X0-1V1 5000 Major X0-1V1 Interference 600 Cogmind --------- Core Integrity 535/590 Matter 176/300 Energy 265/265 System Corruption 0% Temperature Cool (30) Movement Treading (160) Location -6/Factory Parts ------- > --- POWER (1) -------- Reinforced Ion Engine > --- PROPULSION (4) --- Light Treads Light Treads Light Treads Light Treads > --- UTILITY (6) ------ High-capacity Storage Unit Machine Analyzer Improved Heavy Armor Plating > --- WEAPON (4) ------- Light Assault Rifle Subdweller Machine Gun Subdweller Machine Gun > --- INVENTORY (20) --- Protomatter-36 Light Angular Momentum Engine Light Treads Light Treads Spiked Treads Huge Storage Unit Advanced Sensor Array Improved Heavy Armor Plating Subdweller Laser Subdweller Laser Gatling Laser Plasma Rifle Subdweller Beam Cannon Heavy Flak Cannon Rocket Launcher Rocket Launcher CPS Tube (2) CPS Tube (2) Makeshift Sword Peak State ------------ > --- POWER ------------ Reinforced Ion Engine > --- PROPULSION ------- Light Treads Light Treads Light Treads Light Treads > --- UTILITY ---------- High-capacity Storage Unit Machine Analyzer Advanced Sensor Array Improved Heavy Armor Plating X0-1V1's Piety Tracker > --- WEAPON ----------- Subdweller Beam Cannon Light Assault Rifle Subdweller Machine Gun Subdweller Machine Gun > --- INVENTORY -------- Light Angular Momentum Engine Light Treads Light Treads Spiked Treads Improved Heavy Armor Plating Subdweller Laser Subdweller Laser Plasma Rifle Rocket Launcher Rocket Launcher CPS Tube CPS Tube Makeshift Sword [Rating: 49] Favorites ----------- Power Reinforced Ion Engine Engine Reinforced Ion Engine Propulsion Light Treads Treads Light Treads Wheel Armored Wheel Utility High-capacity Storage Unit Device X0-1V1's Piety Tracker Storage High-capacity Storage Unit Processor Targeting Computer Protection Improved Heavy Armor Plating Weapon Subdweller Beam Cannon Energy Gun Medium Laser Energy Cannon Subdweller Beam Cannon Ballistic Gun Subdweller Machine Gun Build | -11 -10 -10 -9 -6 ------- Run | Yrd Mat Sub Scr Fac Slots Evolved 8 | . . . . 8 Power . | . . . . . Propulsion 3 | . . . . 3 Utility 4 | . . . . 4 Weapon 1 | . . . . 1 Parts Attached 36 | 6 6 10 7 7 Power 3 | 1 . 2 . . Engine 3 | 1 . 2 . . Core . | . . . . . Reactor . | . . . . . Propulsion 12 | 2 2 2 3 3 Treads 10 | 2 2 2 1 3 Leg . | . . . . . Wheel 2 | . . . 2 . Hover . | . . . . . Flight . | . . . . . Utility 11 | 1 3 1 3 3 Device 5 | . 1 1 2 1 Storage 2 | 1 1 . . . Processor 3 | . 1 . 1 1 Hackware . | . . . . . Protection 1 | . . . . 1 Artifact . | . . . . . Weapon 10 | 2 1 5 1 1 Energy Gun 1 | 1 . . . . Energy Cannon 2 | . . 2 . . Ballistic Gun 7 | 1 1 3 1 1 Ballistic Cannon . | . . . . . Launcher . | . . . . . Special Weapon . | . . . . . Impact Weapon . | . . . . . Slashing Weapon . | . . . . . Piercing Weapon . | . . . . . Special Melee Weapon . | . . . . . Unidentified Prototypes 1 | . 1 . . . Parts Lost 5 | . . 4 . 1 Power 1 | . . 1 . . Propulsion . | . . . . . Utility 2 | . . 1 . 1 Weapon 2 | . . 2 . . Highest Loss Streak 3 | . . 3 . 1 To Critical Strikes 1 | . . 1 . . Average Backups 17 | 2 14 19 18 15 Power 1 | . 1 1 . 1 Propulsion 9 | 1 9 11 9 3 Utility 1 | . . . 2 2 Weapon 5 | . 3 5 5 7 Tool/Special . | . . . . . Unused Backups 26 | . 2 2 7 15 Power 4 | . . 1 2 1 Propulsion 7 | . 2 . 3 2 Utility 4 | . . . 2 2 Weapon 9 | . . 1 . 8 Tool/Special 2 | . . . . 2 Average Slot Usage (%) 96 | . 89 99 99 84 Engine 13 | . 14 13 14 6 Treads 17 | . 28 20 7 25 Wheel 2 | . . . 6 . Device 10 | . . 13 13 9 Storage 13 | . 14 14 14 6 Processor 1 | . 4 . . 5 Energy Cannon 14 | . . 23 16 3 Ballistic Gun 20 | . 25 11 25 19 Peak Build Rating 49 | 6 20 26 27 49 Average Rating 20 | 4 7 23 22 44 On Entrance 14 | . 6 20 26 19 Avg Prop Armor Cover (%) . | . . . . . Naked Turns . | . . . . . Heaviest Build 84 | 14 50 71 71 84 Greatest Support 87 | 40 40 40 20 87 Greatest Overweight (x) 7 | . 1 3 7 1 Average Overweight (x) 2 | . . 1 4 . Largest Inventory Capacity 20 | 8 20 20 20 20 Average Capacity 19 | 6 18 20 20 20 Most Carried 20 | 4 19 20 20 20 Average Carried 17 | 2 14 19 19 16 Final Capacity 20 | 8 20 20 20 20 Final Carried 20 | 4 18 20 20 20 Class Distribution -------------------- 42% | Mutant 37% | Gunner 19% | Skirmisher Dominant Class ---------------- Mutant | -10/Materials Gunner | -10/Subcaves Gunner | -9/Scraptown Skirmisher | -6/Factory Resources | -11 -10 -10 -9 -6 ----------- Run | Yrd Mat Sub Scr Fac Matter Collected 956 | 270 332 295 59 . Remotely . | . . . . . Salvage Created 1194 | 78 674 442 . . Parts 71 | 1 31 39 . . Haulers Intercepted 1 | . 1 . . . Recyclers Shooed 2 | . 2 . . . Parts Field Recycled . | . . . . . Retrieved Matter . | . . . . . Parts Self-Destructed 30 | . . 30 . . Prevented . | . . . . . Parts Restored . | . . . . . Kills | -11 -10 -10 -9 -6 ------- Run | Yrd Mat Sub Scr Fac Combat Hostiles Destroyed 27 | . 12 15 . . Guns 19 | . 12 7 . . Cannons 7 | . . 7 . . Classes Destroyed 6 | 1 3 2 . . Hauler 1 | . 1 . . . Recycler 2 | 1 1 . . . Operator 1 | . 1 . . . Swarmer 7 | . . 7 . . Grunt 15 | . 12 3 . . Subdweller 5 | . . 5 . . Best Kill Streak 5 | 1 5 4 . . Combat Bots Only 5 | . 5 4 . . Max Kills in Single Turn 1 | 1 1 1 . . Gunslinging . | . . . . . Exploded . | . . . . . Melee . | . . . . . Uniques/NPCs Destroyed . | . . . . . Combat | -11 -10 -10 -9 -6 -------- Run | Yrd Mat Sub Scr Fac Hostile Shots Fired 171 | . 49 87 . 35 Missed 39 | . 12 20 . 7 Hits 132 | . 37 67 . 28 Projectile 132 | . 37 67 . 28 Critical Strikes 1 | . . 1 . . Damage Taken 1741 | . 451 918 . 372 Core 299 | . 64 180 . 55 Absorbed by Shields . | . . . . . Core Remaining (%) 59 | 100 . . 18 . Volleys Fired 109 | 4 54 46 . 5 Largest 3 | 2 2 3 . 3 Hottest 190 | 70 70 190 . 80 Shots Fired 220 | 8 108 92 . 12 Gun 188 | 8 108 60 . 12 Cannon 32 | . . 32 . . Launcher . | . . . . . Special . | . . . . . Kinetic 170 | 4 94 60 . 12 Thermal 50 | 4 14 32 . . Explosive . | . . . . . Electromagnetic . | . . . . . Robot Hit Streak 12 | 3 12 10 . 8 Robot Miss Streak 3 | 1 2 3 . 3 Penetration Max . | . . . . . Secondary Targets 3 | . 1 2 . . Max Gunslinging Chain 1 | . 1 1 . . Shots Hit Robots 151 | 5 89 50 . 7 Core Hits 54 | 2 30 20 . 2 Critical Kills 2 | . 1 1 . . Critical Parts Destroyed 3 | . 3 . . . Critical Strikes 8 | . 7 1 . . Burn 3 | . 3 . . . Meltdown 1 | . . 1 . . Destroy 4 | . 4 . . . Melee Attacks . | . . . . . Impact . | . . . . . Slashing . | . . . . . Piercing . | . . . . . Sneak Attacks . | . . . . . Combat Hostiles . | . . . . . Follow-up Attacks . | . . . . . Damage Inflicted 2214 | 67 1165 868 . 114 Guns 1703 | 64 1126 399 . 114 Cannons 469 | . . 469 . . Explosions . | . . . . . Melee . | . . . . . Ramming 42 | 3 39 . . . Kinetic 1552 | 52 987 399 . 114 Thermal 620 | 12 139 469 . . Explosive . | . . . . . Electromagnetic . | . . . . . Impact . | . . . . . Slashing . | . . . . . Piercing . | . . . . . Highest Corruption 1 | . 1 1 . . Average Corruption 1 | . 1 1 . . Corruption Purged . | . . . . . Corruption Blocked . | . . . . . Effects 23 | . 2 21 . . Message Errors 8 | . 1 7 . . Matter Fused 7 | . . 7 . . Heat Flow Errors 1 | . 1 . . . Energy Discharges 1 | . . 1 . . Parts Rejected 1 | . . 1 . . Data Loss (minor) 1 | . . 1 . . Data Loss (major) 2 | . . 2 . . Misfires 1 | . . 1 . . Alerts 1 | . . 1 . . Overload Shots . | . . . . . Overflow Damage 11 | . . 11 . . Projectiles 11 | . . 11 . . Explosions . | . . . . . Melee . | . . . . . Knockbacks 1 | . 1 . . . Impact 1 | . 1 . . . Kinetic . | . . . . . Secondary . | . . . . . Self-Inflicted Damage . | . . . . . Shots . | . . . . . Rammed 6 | 1 5 . . . Targets Rammed 6 | 1 5 . . . Kicked . | . . . . . Crushed . | . . . . . Highest Temperature 288 | 36 251 288 . 31 Average Temperature 60 | 19 40 94 . 18 Received Heat Transfer 438 | . 249 171 . 18 Siege Activations . | . . . . . Martial Activations . | . . . . . Shielding Activations . | . . . . . Robots Disrupted . | . . . . . Combat Hostiles . | . . . . . Robots Corrupted . | . . . . . Combat Hostiles . | . . . . . Parts Fried . | . . . . . Impact Corruptions . | . . . . . Robots Melted 1 | . . 1 . . Combat Hostiles 1 | . . 1 . . Parts Melted 2 | . 2 . . . Heat Transferred 1258 | 37 629 592 . . Parts Sabotaged . | . . . . . Parts Stolen . | . . . . . Parts Stripped . | . . . . . Power Chain Reactions . | . . . . . Alert | -11 -10 -10 -9 -6 ------- Run | Yrd Mat Sub Scr Fac Maximum Alert Level 1 | . 1 . . . Low Security (%) 99 | 100 99 . . 100 Level 1 . | . . . . . Level 2 . | . . . . . Level 3 . | . . . . . Level 4 . | . . . . . Level 5 . | . . . . . High Security . | . . . . . Max Security . | . . . . . Peak Influence 201 | 5 201 . . 15 Initial . | . . . . . Average 55 | . 67 . . . Influence Increases 659 | 5 404 230 . 20 Destroy 0b10 Robot/C 440 | . 240 200 . . Destroy 0b10 Robot/NC 20 | 5 15 . . . Destroy Leader 52 | . 52 . . . Successful Hack 12 | . 7 . . 5 Disable Machine 15 | . . . . 15 Partial Spotted 15 | . 15 . . . Lose Combat Pursuer 105 | . 75 30 . . Influence Decreases 644 | 5 354 269 11 5 Entered New Map 36 | . . 25 11 . Time Decay 598 | 5 354 234 . 5 Lost Part 10 | . . 10 . . Squads Dispatched 5 | . 3 . . 2 Investigation 4 | . 3 . . 1 Extermination . | . . . . . Reinforcement 1 | . . . . 1 Assault . | . . . . . Garrison . | . . . . . Intercept . | . . . . . Searches Triggered . | . . . . . Construction Impeded . | . . . . . Haulers Reinforced 1 | . . . . 1 Active Scanning Responses . | . . . . . Cargo Convoy Interrupts . | . . . . . Stealth | -11 -10 -10 -9 -6 --------- Run | Yrd Mat Sub Scr Fac Distress Signals 3 | . 2 . . 1 Communications Jammed . | . . . . . Distress Signals . | . . . . . Times Spotted 48 | . 26 16 . 6 Peak Tracking Total 6 | . 5 6 . 5 Tactical Retreats 5 | . 4 1 . . Traps | -11 -10 -10 -9 -6 ------- Run | Yrd Mat Sub Scr Fac Traps Triggered 2 | . 2 . . . Indirectly . | . . . . . Trap Hack Attempts . | . . . . . Triggered . | . . . . . Disarmed . | . . . . . Reprogrammed . | . . . . . Reused . | . . . . . Traps Extracted . | . . . . . Installed . | . . . . . Triggered . | . . . . . Machines | -11 -10 -10 -9 -6 ---------- Run | Yrd Mat Sub Scr Fac Machines Disabled 2 | . . 1 . 1 Max in Single Turn 1 | . . 1 . 1 Machines Repaired . | . . . . . Machines Dismantled . | . . . . . Machines Sabotaged . | . . . . . Overloaded Fab Kills . | . . . . . Hacking | -11 -10 -10 -9 -6 --------- Run | Yrd Mat Sub Scr Fac Machines Accessed 9 | . 6 . 1 2 Terminals 7 | . 6 . . 1 Fabricators 1 | . . . . 1 Repair Stations . | . . . . . Recycling Units . | . . . . . Scanalyzers . | . . . . . Garrison Access . | . . . . . Total Hacks 27 | . 16 . 8 3 Successful 14 | . 3 . 8 3 Failed 13 | . 13 . . . Catastrophic 2 | . 2 . . . Database Lockouts . | . . . . . Manual 17 | . 17 . . . Terminals 17 | . 16 . . 1 Fabricators 2 | . . . . 2 Repair Stations . | . . . . . Recycling Units . | . . . . . Scanalyzers . | . . . . . Garrison Access . | . . . . . Terminal Hacks 11 | . 2 . 8 1 Record 8 | . . . 8 . Part Schematic 1 | . 1 . . . Robot Analysis 1 | . 1 . . . Open DSF 1 | . . . . 1 Fabricator Hacks 2 | . . . . 2 Load Schematic 1 | . . . . 1 Build 1 | . . . . 1 Repair Station Hacks . | . . . . . Recycling Unit Hacks . | . . . . . Scanalyzer . | . . . . . Garrison Access Hacks . | . . . . . Unauthorized Hacks 1 | . 1 . . . Terminals 1 | . 1 . . . Skim 1 | . 1 . . . Fabricators . | . . . . . Repair Stations . | . . . . . Recycling Units . | . . . . . Scanalyzers . | . . . . . Garrison Access . | . . . . . Data Cores Recovered 1 | . 1 . . . Used . | . . . . . Hacking Detections 7 | . 6 . . 1 Full Trace Events 3 | . 2 . . 1 Feedback Events . | . . . . . Feedback Blocked . | . . . . . Robot Schematics Acquired . | . . . . . Robots Built . | . . . . . Authchips . | . . . . . Time . | . . . . . Total Robot Build Rating . | . . . . . Part Schematics Acquired 1 | . 1 . . . Parts Built 1 | . . . . 1 Authchips . | . . . . . Time 25 | . . . . 25 Total Part Build Rating 1 | . . . . 1 Part Studies Acquired . | . . . . . Parts Repaired . | . . . . . Time . | . . . . . Parts Recycled . | . . . . . Recycled Matter . | . . . . . Retrieved Matter . | . . . . . Retrieved Components . | . . . . . Parts Scanalyzed . | . . . . . Part Schematics Acquired . | . . . . . Parts Damaged . | . . . . . Bothacking | -11 -10 -10 -9 -6 ------------ Run | Yrd Mat Sub Scr Fac Used RIF Installer . | . . . . . Robots Hacked . | . . . . . Non-combat . | . . . . . Combat . | . . . . . Robot Hacks Applied . | . . . . . Relay Couplers Released . | . . . . . Fabnet Peak Effective % . | . . . . . Robots Rewired . | . . . . . Allies Hacked . | . . . . . Hacks Repelled . | . . . . . Allies | -11 -10 -10 -9 -6 -------- Run | Yrd Mat Sub Scr Fac Total Allies . | . . . . . Largest Group . | . . . . . Highest-Rated Group . | . . . . . Highest-Rated Ally . | . . . . . Total Orders . | . . . . . Ally Attacks . | . . . . . Total Damage . | . . . . . Kills . | . . . . . Allies Corrupted . | . . . . . Allies Melted . | . . . . . X0-1V1 Amusement Gains 36 | . 6 10 . 20 Good Acts 7 | . . 5 . 2 Bad Acts 3 | . . 3 . . Intel | -11 -10 -10 -9 -6 ------- Run | Yrd Mat Sub Scr Fac Active Infowar (turns) 1575 | . . . 1307 268 Sensors 1472 | . . . 1307 165 Machine Analysis 265 | . . . . 265 Robot Analysis Total 1 | . 1 . . . Derelict Logs Recovered 7 | . . 2 5 . Drone Launches . | . . . . . Drone Recoveries . | . . . . . Exploration | -11 -10 -10 -9 -6 ------------- Run | Yrd Mat Sub Scr Fac Turns Passed 7871 | 100 1765 2973 2765 268 Spaces Moved 2742 | 47 595 876 1106 118 Core 1 | 1 . . . . Treads 2001 | 46 595 876 366 118 Legs . | . . . . . Wheels 740 | . . . 740 . Hover . | . . . . . Flight . | . . . . . Fastest Speed 50 | 50 160 240 165 160 Average Speed 259 | 157 219 319 247 168 Slowest Speed 460 | 160 240 460 460 240 Overloaded Moves . | . . . . . Propulsion Burnouts . | . . . . . Robots Hopped . | . . . . . Potential Cave-ins . | . . . . . Cave-ins Triggered . | . . . . . Exploration Rate (%) 44 | 4 96 62 57 4 Regions Visited 4 Branch Regions 2 Pre-discovered Areas 3 | . . 2 1 . Known Exits Taken . | . . . . . Unknown Exits Taken 4 | 1 1 1 1 . Scrap Searched 6 | . . 3 3 . Spaces Dug . | . . . . . Terrain Destroyed 7 | . . 7 . . Melee . | . . . . . Projectile 7 | . . 7 . . AOE . | . . . . . Terrain Rammed . | . . . . . Walls Destroyed . | . . . . . Machines Disabled . | . . . . . Actions | -11 -10 -10 -9 -6 --------- Run | Yrd Mat Sub Scr Fac Total 3291 | 61 939 971 1140 180 Wait 303 | . 260 18 . 25 Move 2739 | 47 594 875 1105 118 Hop . | . . . . . Pick Up 47 | 4 15 11 11 6 Fast Attach 13 | 6 2 2 2 1 Attach 15 | . 1 4 3 7 Detach 4 | . 1 . . 3 Swap 13 | . 4 6 3 . Drop 29 | . 3 8 16 2 Fire 109 | 4 54 46 . 5 Melee . | . . . . . Ram . | . . . . . Kick . | . . . . . Crush 5 | . 5 . . . Escape Stasis . | . . . . . Rewire 1 | . . 1 . . Trap . | . . . . . Miscellaneous 13 | . . . . 13 Route ------- -11/Scrapyard -10/Materials (discovered 6 exits: [*Mat x3] / [*Min x2] / [*Sub]) -10/Subcaves (discovered 2 exits: [*Mat] / *Scr) -9/Scraptown -6/Factory (discovered 1 exit: Low) History --------- Turn | Location | Event 8 | -11/Scrapyard | Discovered new exit (range 15) 101 | -11/Scrapyard | Entered Materials 102 | -10/Materials | Met a group of wandering Federalists 227 | -10/Materials | Lost 3 allies 265 | -10/Materials | Discovered new exit (range 11) 318 | -10/Materials | Build established: Mutant 342 | -10/Materials | Discovered new exit (range 16) 639 | -10/Materials | Discovered new exit (range 16) 1057 | -10/Materials | Discovered new exit (range 10) 1514 | -10/Materials | Discovered new exit (range 15) 1519 | -10/Materials | Discovered new exit (range 15) 1857 | -10/Materials | Prayed at D.C.S.S. Altar Unit 1866 | -10/Materials | Entered Subcaves 1867 | -10/Subcaves | Approached by a straggling Scientist 1910 | -10/Subcaves | Ambushed by Subdwellers from Twisted Machinery 1944 | -10/Subcaves | Core integrity fell below 50% 1985 | -10/Subcaves | Lost 3 parts (1p2w) 2024 | -10/Subcaves | X0-1V1 sent hostile G-34 Mercenary (x3) 2252 | -10/Subcaves | Learned location of Zion (-6) 2252 | -10/Subcaves | Ranged accuracy permanently improved by X0-1V1 (+5%; -50 max core) 2387 | -10/Subcaves | A swath of the cavern ceiling suddenly collapsed 2981 | -10/Subcaves | A swath of the cavern ceiling suddenly collapsed 3226 | -10/Subcaves | Learned location of Recycling (-9) 3302 | -10/Subcaves | X0-1V1 mutated your Propulsion slot to Weapon slot 3480 | -10/Subcaves | Discovered new exit (range 10) 3595 | -10/Subcaves | Build established: Gunner 3655 | -10/Subcaves | Scientist uncovered a shortcut to Scraptown 3990 | -10/Subcaves | Shifting Twisted Machinery released Sub. Laser 3994 | -10/Subcaves | Shifting Twisted Machinery released Sub. Machine Gun 4250 | -10/Subcaves | X0-1V1 sent hostile S-10 Pest (x3) 4260 | -10/Subcaves | Core integrity fell below 20% 4277 | -10/Subcaves | Core integrity restored by X0-1V1 (+30) 4839 | -10/Subcaves | Entered Scraptown 4839 | -9/Scraptown | System corruption cleaned by C-Scrubber 5243 | -9/Scraptown | Scanned Subdweller tech in exchange for log data 5247 | -9/Scraptown | Learned location of Quarantine (-2) 5252 | -9/Scraptown | Learned location of 2 exits from Upper Caves 5277 | -9/Scraptown | Discovered new exit (range 13) 5611 | -9/Scraptown | Visited Supply Room 5648 | -9/Scraptown | Visited Red Mages 5705 | -9/Scraptown | Visited TADAMA 5719 | -9/Scraptown | Visited Awakened 5750 | -9/Scraptown | Visited Bundlers 5768 | -9/Scraptown | Visited Cyclists 5852 | -9/Scraptown | Visited Cave Peace 6584 | -9/Scraptown | Build established: Skirmisher 7604 | -9/Scraptown | Entered Factory 7604 | -6/Factory | Evolved 8 slots: Propulsion x3, Utility x4, Weapon x1 7605 | -6/Factory | Identified exit to Lower Caves 7616 | -6/Factory | Identified exit to DSF 7647 | -6/Factory | Mass support permanently improved by X0-1V1 (+7; -210 max core) 7726 | -6/Factory | Fabricated Huge Storage Unit (x1) 7872 | -6/Factory | Self-destructed Last Messages --------------- 07797_ Acquired Sub. Laser. 07803_ K-01 Serf collects debris. 07848_ >> Machine Analyzer network decryption results: 07848_ Terminal x1 07849_ U-05 Engineer works on Subcomponent Replicator. 07858_ A-15 Conveyor calls for reinforcements. 07858_ ALERT: Hostile activity reported, dispatching reinforcements to area. 07858_ A-15 Conveyor sends out distress signal. 07860_ K-01 Serf collects debris. 07861_ U-05 Engineer works on Subcomponent Replicator. 07862_ X0-1V1's Piety Tracker destroyed. 07862_ X0-1V1 is mildly amused. 07863_ U-05 Engineer works on Subcomponent Replicator. 07864_ Sub. Machine Gun shoots sparks and powers down. 07864_ Subcomponent Replicator disabled. 07866_ K-01 Serf collects debris. 07866_ U-05 Engineer works on Subcomponent Replicator. 07870_ K-01 Serf collects debris. 07871_ U-05 Engineer works on Subcomponent Replicator. Map ----- +----------------------------------------------------+ | ?????????????????????????????????????????????????? | | ?????????????????????????????????????????????????? | | ???????????????????????????????????????? ????????? | | ????????????????????????????????????#? ???????? | | ????????????????????????????????????# ???????? | | ????????????????????????????????????# ???????? | | ????????????????????????????????????# ???????? | | ????????????????????????????????????# #??????? | | ????????????????????????????????????# #??????? | | ??????????T?????????????????????????# #??????? | | ?????????""?????????????????????????+ #??????? | | ????????????????????????????????????# #??????? | | ????????????????????????????????????# #??????? | | ?????????????????????????????######## ######## | | ?????????????????????????????# | | ?????????????????????????????# | | ?????????????????????????????# | | ?????????????????????????????# | | ???????????????????########### | | ???????????????????# ! # #####+######### | | ???????????????????# # ## # | | ???????????????????# """